fUST/lending_fUST_20250617
["ID","MTS","AMOUNT","RATE_DAILY","PERIOD"]
[366270221,1750169452977,-460.0,0.00024164,6]
[366270223,1750169452986,-460.0,0.00024164,6]
[366270225,1750169452995,-460.0,0.00024164,6]
[366270227,1750169453006,-460.0,0.00024164,6]
[366270229,1750169453015,-460.0,0.00024164,6]
[366270231,1750169453025,-460.0,0.00024164,6]
[366270233,1750169453034,-460.0,0.00024164,6]
[366270235,1750169453044,-460.0,0.00024164,6]
[366270237,1750169453053,-460.0,0.00024164,6]
[366270239,1750169453063,-7164.63,0.00024164,6]
[366270241,1750169453072,-460.0,0.00024164,6]
[366270243,1750169453081,-460.0,0.00024164,6]
[366270245,1750169453090,-460.0,0.00024164,6]
[366270247,1750169453099,-460.0,0.00024164,6]
[366270249,1750169453108,-460.0,0.00024164,6]
[366270251,1750169453118,-460.0,0.00024164,6]
[366270253,1750169453127,-460.0,0.00024164,6]
[366270255,1750169453136,-460.0,0.00024164,6]
[366270257,1750169453146,-460.0,0.00024164,6]
[366270259,1750169453155,-460.0,0.00024164,6]
[366270261,1750169453164,-5709.99,0.00024164,6]
[366270263,1750169453174,-655.93,0.00024164,6]
[366270265,1750169453183,-460.0,0.00024164,6]
[366270267,1750169453193,-478.77,0.00024164,6]
[366270269,1750169453203,-956.69,0.00024164,6]
[366270271,1750169453214,-460.0,0.00024164,6]
[366270273,1750169453226,-3674.88,0.00024164,6]
[366270275,1750169453236,-460.0,0.00024164,6]
[366270276,1750169453245,-460.0,0.00024164,6]
[366270277,1750169453256,-1420.2,0.00024164,6]
[366270278,1750169453266,-571.08698676,0.00024164,6]
[366270279,1750169453275,-460.0,0.00024164,6]
[366270280,1750169453285,-460.0,0.00024164,6]
[366270281,1750169453294,-460.0,0.00024164,6]
[366270282,1750169453304,-460.0,0.00024164,6]
[366270283,1750169453314,-2016.1,0.00024164,2]
[366270284,1750169453324,-460.0,0.00024164,6]
[366270285,1750169453333,-791.81,0.00024164,6]
[366270287,1750169453343,-460.0,0.00024164,6]
[366270289,1750169453352,-352.42587138,0.00024164,6]
[366270290,1750169453362,-460.0,0.00024164,6]
[366270293,1750169453372,-1220.55,0.00024164,6]
[366270295,1750169453381,-1098.59,0.00024164,6]
[366270296,1750169453392,-460.0,0.00024164,6]
[366270299,1750169453402,-636.28,0.00024164,6]
[366270301,1750169453411,-1596.24,0.00024164,6]
[366270302,1750169453421,-475.14110647,0.00024164,6]
[366270304,1750169453430,-460.0,0.00024164,6]
[366270306,1750169453440,-460.0,0.00024164,6]
[366270308,1750169453450,-1045.45,0.00024164,6]
[366270310,1750169453459,-460.0,0.00024164,6]
[366270312,1750169453469,-434.58149086,0.00024164,6]
[366270315,1750169453482,-327.2,0.00024164,6]
[366270360,1750169453938,-302.78311816,0.00024003,10]
[366270362,1750169453948,-170.21566736,0.00024109,6]
[366270364,1750169453958,-460.0,0.00024109,6]
[366270366,1750169453968,-460.0,0.00024109,6]
[366270368,1750169453978,-281.25366821,0.00024109,6]
[366270380,1750169454084,-460.0,0.00024136,6]
[366270382,1750169454096,-460.0,0.00024136,6]
[366270384,1750169454105,-112.68850914,0.00024164,6]
[366270386,1750169454115,-460.0,0.00024164,6]
[366270388,1750169454124,-403.54802118,0.00024164,6]
[366270390,1750169454133,-435.3112175,0.00024164,6]
[366270392,1750169454143,-460.0,0.00024164,6]
[366270394,1750169454152,-2259.26,0.00024164,6]
[366270395,1750169454162,-460.0,0.00024164,6]
[366270398,1750169454171,-460.0,0.00024164,6]
[366270400,1750169454181,-208.01024769,0.00024164,6]
[366270401,1750169454190,-370.0,0.00024164,6]
[366270403,1750169454200,-468.81,0.00024164,6]
[366270405,1750169454210,-460.0,0.00024164,6]
[366270407,1750169454223,-474.83,0.00024164,6]
[366270409,1750169454235,-974.49,0.00024164,6]
[366270411,1750169454247,-460.0,0.00024164,6]
[366270413,1750169454261,-1341.92,0.00024164,6]
[366270415,1750169454271,-4084.92,0.00024164,6]
[366270417,1750169454281,-841.53,0.00024164,6]
[366270419,1750169454291,-460.0,0.00024164,6]
[366270421,1750169454302,-460.0,0.00024164,6]
[366270424,1750169454312,-460.0,0.00024164,6]
[366270425,1750169454322,-1619.79,0.00024164,6]
[366270427,1750169454333,-2543.08,0.00024164,6]
[366270430,1750169454343,-460.0,0.00024164,6]
[366270432,1750169454353,-460.0,0.00024164,6]
[366270433,1750169454362,-5432.17,0.00024164,6]
[366270435,1750169454373,-460.0,0.00024164,6]
[366270437,1750169454383,-306.85112534,0.00024164,6]
[366270439,1750169454393,-460.0,0.00024164,6]
[366270441,1750169454402,-460.0,0.00024164,6]
[366270443,1750169454411,-460.0,0.00024164,6]
[366270445,1750169454421,-943.63,0.00024164,6]
[366270447,1750169454432,-460.0,0.00024164,6]
[366270450,1750169454443,-460.0,0.00024164,6]
[366270452,1750169454453,-460.0,0.00024164,6]
[366270453,1750169454462,-6773.17,0.00024164,6]
[366270456,1750169454472,-2218.05,0.00024164,6]
[366270458,1750169454482,-460.0,0.00024164,6]
[366270460,1750169454492,-346.87068734,0.00024164,6]
[366270462,1750169454503,-1352.3,0.00024164,6]
[366270464,1750169454512,-460.0,0.00024164,6]
[366270466,1750169454522,-414.2837531,0.00024164,6]
[366270468,1750169454533,-1254.61,0.00024164,6]
[366270470,1750169454543,-604.96,0.00024164,6]
[366270472,1750169454553,-460.0,0.00024164,6]
[366270474,1750169454562,-460.0,0.00024164,6]
[366270476,1750169454573,-1208.43,0.00024164,6]
[366270478,1750169454582,-460.0,0.00024164,6]
[366270480,1750169454592,-7855.89,0.00024164,6]
[366270482,1750169454601,-8639.97,0.00024164,6]
[366270484,1750169454610,-460.0,0.00024164,6]
[366270486,1750169454621,-460.0,0.00024164,6]
[366270488,1750169454631,-460.0,0.00024164,6]
[366270490,1750169454641,-460.0,0.00024164,6]
[366270492,1750169454651,-413.38893907,0.00024164,6]
[366270494,1750169454661,-484.15,0.00024164,6]
[366270496,1750169454671,-460.0,0.00024164,6]
[366270498,1750169454681,-460.0,0.00024164,6]
[366270499,1750169454690,-460.0,0.00024164,6]
[366270501,1750169454700,-460.0,0.00024164,6]
[366270503,1750169454710,-460.0,0.00024164,6]
[366270506,1750169454720,-564.72,0.00024164,6]
[366270508,1750169454730,-460.0,0.00024164,6]
[366270510,1750169454740,-1725.23,0.00024164,6]
[366270511,1750169454749,-460.0,0.00024164,6]
[366270513,1750169454761,-460.0,0.00024164,6]
[366270515,1750169454771,-689.18,0.00024164,6]
[366270517,1750169454781,-2640.18,0.00024164,6]
[366270519,1750169454790,-460.0,0.00024164,6]
[366270521,1750169454800,-460.0,0.00024164,6]
[366270523,1750169454809,-460.0,0.00024164,6]
[366270525,1750169454818,-723.32,0.00024164,6]
[366270527,1750169454828,-2045.47,0.00024164,6]
[366270529,1750169454838,-460.0,0.00024164,6]
[366270531,1750169454847,-460.0,0.00024164,6]
[366270533,1750169454857,-460.0,0.00024164,6]
[366270535,1750169454866,-1685.22,0.00024164,6]
[366270537,1750169454876,-857.37,0.00024164,6]
[366270539,1750169454885,-460.0,0.00024164,6]
[366270541,1750169454895,-557.4872749,0.00024164,6]
[366270543,1750169454904,-460.0,0.00024164,6]
[366270545,1750169454913,-1668.07,0.00024164,6]
[366270547,1750169454923,-3319.29,0.00024164,6]
[366270549,1750169454933,-2273.07,0.00024164,6]
[366270551,1750169454943,-1100.15,0.00024164,6]
[366270553,1750169454953,-460.0,0.00024164,6]
[366270555,1750169454963,-460.0,0.00024164,6]
[366270557,1750169454972,-460.0,0.00024164,6]
[366270559,1750169454982,-460.0,0.00024164,6]
[366270561,1750169454992,-1285.95,0.00024164,6]
[366270563,1750169455008,-460.0,0.00024164,6]
[366270565,1750169455018,-460.0,0.00024164,6]
[366270567,1750169455028,-978.4,0.00024164,6]
[366270569,1750169455037,-6491.67,0.00024164,6]
[366270571,1750169455046,-627.8,0.00024164,6]
[366270573,1750169455056,-460.0,0.00024164,6]
[366270574,1750169455065,-1439.13,0.00024164,6]
[366270576,1750169455075,-460.0,0.00024164,6]
[366270579,1750169455087,-658.34,0.00024164,6]
[366270581,1750169455096,-460.0,0.00024164,6]
[366270582,1750169455105,-371.0504009,0.00024164,6]
[366270584,1750169455114,-2616.54,0.00024164,6]
[366270586,1750169455124,-510.47,0.00024164,6]
[366270588,1750169455133,-460.0,0.00024164,6]
[366270600,1750169455234,-460.0,0.00024164,6]
[366270602,1750169455244,-460.0,0.00024164,6]
[366270604,1750169455256,-551.34,0.00024164,6]
[366270606,1750169455265,-2158.43,0.00024164,6]
[366270608,1750169455275,-1169.2,0.00024164,6]
[366270609,1750169455284,-460.0,0.00024164,6]
[366270611,1750169455293,-460.0,0.00024164,6]
[366270613,1750169455304,-2802.09,0.00024164,6]
[366270615,1750169455313,-1936.0,0.00024164,6]
[366270617,1750169455323,-528.61928109,0.00024164,6]
[366270619,1750169455332,-460.0,0.00024164,6]
[366270621,1750169455342,-460.0,0.00024164,6]
[366270623,1750169455351,-460.0,0.00024164,6]
[366270625,1750169455361,-380.0,0.00024164,6]
[366270627,1750169455370,-1800.86,0.00024164,6]
[366270629,1750169455379,-460.0,0.00024164,6]
[366270631,1750169455389,-460.0,0.00024164,6]
[366270633,1750169455399,-5628.82,0.00024164,6]
[366270635,1750169455408,-460.0,0.00024164,6]
[366270637,1750169455417,-460.0,0.00024164,6]
[366270639,1750169455427,-460.0,0.00024164,6]
[366270641,1750169455436,-460.0,0.00024164,6]
[366270643,1750169455445,-460.0,0.00024164,6]
[366270645,1750169455455,-636.22,0.00024164,6]
[366270647,1750169455464,-460.0,0.00024164,6]
[366270649,1750169455473,-486.95267888,0.00024164,6]
[366270651,1750169455482,-460.0,0.00024164,6]
[366270652,1750169455492,-460.0,0.00024164,6]
[366270654,1750169455501,-460.0,0.00024164,6]
[366270656,1750169455511,-460.0,0.00024164,6]
[366270659,1750169455523,-460.0,0.00024164,6]
[366270661,1750169455532,-1118.45,0.00024164,6]
[366270662,1750169455542,-1122.8,0.00024164,6]
[366270665,1750169455552,-460.0,0.00024164,6]
[366270666,1750169455561,-460.0,0.00024164,6]
[366270668,1750169455571,-173.21947115,0.00024164,6]
[366270670,1750169455580,-460.0,0.00024164,6]
[366270673,1750169455591,-573.87,0.00024164,6]
[366270675,1750169455601,-278.85204523,0.00024164,6]
[366270677,1750169455610,-872.02,0.00024164,6]
[366270679,1750169455619,-460.0,0.00024164,6]
[366270681,1750169455629,-460.0,0.00024164,6]
[366270683,1750169455638,-460.0,0.00024164,6]
[366270685,1750169455648,-319.72233618,0.00024164,6]
[366270687,1750169455658,-3000.0,0.0002417,2]
[366270689,1750169455667,-162.15151568,0.00024173,2]
[366270691,1750169455676,-394.8025792,0.00024173,2]
[366270693,1750169455686,-501.49722536,0.00024173,2]
[366270695,1750169455695,-500.0,0.00024173,2]
[366270698,1750169455716,-152.868433,0.00024173,7]
[366270701,1750169455733,-151.0,0.00024173,7]
[366270704,1750169455753,-151.0,0.00024173,7]
[366270707,1750169455776,-151.0,0.00024173,7]
[366270710,1750169455796,-302.78311816,0.00024176,10]
[366270713,1750169455823,-3000.0,0.0002418,2]
[366270715,1750169455857,-3000.0,0.0002419,2]
[366270717,1750169455887,-198.94206316,0.00024191,6]
[366270720,1750169455918,-198.76709495,0.00024191,6]
[366270722,1750169455952,-200.1371612,0.00024191,6]
[366270725,1750169455989,-155.06748207,0.00024191,6]
[366270726,1750169456016,-172.6707664,0.00024191,6]
[366270727,1750169456049,-400.4383977,0.00024191,6]
[366270728,1750169456078,-151.0,0.00024191,7]
[366270729,1750169456104,-151.296424,0.00024191,7]
[366270730,1750169456118,-151.0,0.00024191,7]
[366270731,1750169456135,-151.0,0.00024191,7]
[366270732,1750169456154,-151.0,0.00024191,7]
[366270734,1750169456181,-152.839024,0.00024191,7]
[366270737,1750169456202,-152.46553,0.00024191,7]
[366270740,1750169456222,-185.951074,0.00024191,7]
[366270743,1750169456241,-151.0,0.00024191,7]
[366270746,1750169456261,-424.62582665,0.00024191,7]
[366270749,1750169456281,-364.89427182,0.00024191,6]
[366270752,1750169456300,-835.82910252,0.00024191,7]
[366270754,1750169456318,-460.0,0.00024191,6]
[366270757,1750169456335,-182.74977577,0.00024191,6]
[366270760,1750169456353,-219.7185,0.00024191,6]
[366270763,1750169456372,-380.0,0.00024191,6]
[366270766,1750169456391,-460.0,0.00024191,6]
[366270769,1750169456410,-460.0,0.00024191,6]
[366270771,1750169456430,-460.0,0.00024191,6]
[366270774,1750169456450,-398.87356447,0.00024191,6]
[366270776,1750169456468,-460.0,0.00024191,6]
[366270779,1750169456486,-400.0,0.00024191,6]
[366270782,1750169456504,-460.0,0.00024191,6]
[366270785,1750169456524,-460.0,0.00024191,6]
[366270787,1750169456539,-460.0,0.00024191,6]
[366270789,1750169456549,-460.0,0.00024191,6]
[366270791,1750169456559,-460.0,0.00024191,6]
[366270793,1750169456569,-460.0,0.00024191,6]
[366270795,1750169456579,-460.0,0.00024191,6]
[366270797,1750169456589,-224.20281402,0.00024191,6]
[366270799,1750169456600,-473.68621766,0.00024191,6]
[366270801,1750169456610,-460.0,0.00024191,6]
[366270803,1750169456620,-385.81561454,0.00024191,6]
[366270805,1750169456631,-460.0,0.00024191,6]
[366270807,1750169456641,-400.0,0.00024191,6]
[366270827,1750169456835,-460.0,0.00024191,6]
[366270830,1750169456849,-460.0,0.00024191,6]
[366270832,1750169456859,-315.4376204,0.00024191,6]
[366270834,1750169456869,-492.61,0.00024191,6]
[366270836,1750169456879,-350.0,0.00024191,6]
[366270838,1750169456888,-460.0,0.00024191,6]
[366270840,1750169456898,-460.0,0.00024191,6]
[366270842,1750169456908,-460.0,0.00024191,6]
[366270844,1750169456917,-460.0,0.00024191,6]
[366270846,1750169456926,-500.0,0.00024191,6]
[366270848,1750169456936,-460.0,0.00024191,6]
[366270850,1750169456946,-460.0,0.00024191,6]
[366270852,1750169456955,-460.0,0.00024191,6]
[366270854,1750169456966,-497.1,0.00024191,6]
[366270855,1750169456976,-424.18419569,0.00024191,6]
[366270857,1750169456986,-460.0,0.00024191,6]
[366270859,1750169456995,-460.0,0.00024191,6]
[366270861,1750169457005,-460.0,0.00024191,6]
[366270863,1750169457016,-460.0,0.00024191,6]
[366270865,1750169457026,-1447.5,0.00024191,2]
[366270867,1750169457036,-460.0,0.00024191,6]
[366270869,1750169457045,-460.0,0.00024191,6]
[366270871,1750169457055,-460.0,0.00024191,6]
[366270873,1750169457065,-460.0,0.00024191,6]
[366270875,1750169457075,-460.0,0.00024191,6]
[366270877,1750169457084,-460.0,0.00024191,6]
[366270879,1750169457094,-460.0,0.00024191,6]
[366270881,1750169457104,-460.0,0.00024191,6]
[366270883,1750169457114,-460.0,0.00024191,6]
[366270885,1750169457123,-460.0,0.00024191,6]
[366270887,1750169457132,-180.06795803,0.00024191,6]
[366270889,1750169457141,-460.0,0.00024191,6]
[366270891,1750169457151,-460.0,0.00024191,6]
[366270893,1750169457161,-460.0,0.00024191,6]
[366270895,1750169457171,-460.0,0.00024191,6]
[366270897,1750169457180,-376.00838907,0.00024191,6]
[366270899,1750169457190,-214.88729475,0.00024191,6]
[366270901,1750169457201,-460.0,0.00024191,6]
[366270903,1750169457212,-460.0,0.00024191,6]
[366270905,1750169457228,-460.0,0.00024191,6]
[366270907,1750169457238,-460.0,0.00024191,6]
[366270909,1750169457248,-529.06035512,0.00024191,6]
[366270911,1750169457259,-460.0,0.00024191,6]
[366270913,1750169457270,-460.0,0.00024191,6]
[366270915,1750169457279,-256.39247356,0.00024191,6]
[366270917,1750169457289,-460.0,0.00024191,6]
[366270919,1750169457300,-460.0,0.00024191,6]
[366270921,1750169457311,-440.0,0.00024191,6]
[366270923,1750169457321,-460.0,0.00024191,6]
[366270925,1750169457331,-460.0,0.00024191,6]
[366270927,1750169457341,-347.61688951,0.00024191,6]
[366270929,1750169457351,-460.0,0.00024191,6]
[366270931,1750169457361,-460.0,0.00024191,6]
[366270933,1750169457371,-460.0,0.00024191,6]
[366270935,1750169457381,-460.0,0.00024191,6]
[366270937,1750169457391,-460.0,0.00024191,6]
[366270939,1750169457402,-460.0,0.00024191,6]
[366270941,1750169457411,-460.0,0.00024191,6]
[366270943,1750169457422,-460.0,0.00024191,6]
[366270945,1750169457431,-476.5,0.00024191,6]
[366270947,1750169457442,-460.0,0.00024191,6]
[366270950,1750169457452,-460.0,0.00024191,6]
[366270952,1750169457462,-460.0,0.00024191,6]
[366270953,1750169457472,-218.78814851,0.00024191,6]
[366270956,1750169457483,-420.60029413,0.00024191,6]
[366270958,1750169457492,-460.0,0.00024191,6]
[366270959,1750169457502,-460.0,0.00024191,6]
[366270962,1750169457515,-233.49346247,0.00024191,6]
[366270964,1750169457525,-460.0,0.00024191,6]
[366270966,1750169457535,-500.0,0.00024191,6]
[366270968,1750169457545,-460.0,0.00024191,6]
[366270970,1750169457554,-1536.14,0.00024191,6]
[366270972,1750169457564,-460.0,0.00024191,6]
[366270973,1750169457574,-150.76991094,0.00024191,6]
[366270975,1750169457584,-460.0,0.00024191,6]
[366270979,1750169457606,-460.0,0.00024191,6]
[366270981,1750169457618,-460.0,0.00024191,6]
[366270983,1750169457629,-460.0,0.00024191,6]
[366270985,1750169457640,-638.49,0.00024191,6]
[366270987,1750169457650,-460.0,0.00024191,6]
[366270989,1750169457662,-460.0,0.00024191,6]
[366270991,1750169457673,-460.0,0.00024191,6]
[366270993,1750169457683,-498.95,0.00024191,6]
[366270995,1750169457694,-460.0,0.00024191,6]
[366270998,1750169457706,-500.5,0.00024191,6]
[366271000,1750169457716,-460.0,0.00024191,6]
[366271002,1750169457727,-310.0,0.00024191,6]
[366271004,1750169457737,-460.0,0.00024191,6]
[366271006,1750169457748,-460.0,0.00024191,6]
[366271008,1750169457759,-565.11,0.00024191,6]
[366271010,1750169457769,-460.0,0.00024191,6]
[366271012,1750169457780,-460.0,0.00024191,6]
[366271014,1750169457790,-460.0,0.00024191,6]
[366271016,1750169457801,-460.0,0.00024191,6]
[366271018,1750169457811,-460.0,0.00024191,6]
[366271020,1750169457822,-220.0,0.00024191,6]
[366271022,1750169457832,-460.0,0.00024191,6]
[366271024,1750169457842,-460.0,0.00024191,6]
[366271026,1750169457853,-460.0,0.00024191,6]
[366271028,1750169457863,-460.0,0.00024191,6]
[366271030,1750169457873,-460.0,0.00024191,6]
[366271032,1750169457883,-460.0,0.00024191,6]
[366271034,1750169457894,-460.0,0.00024191,6]
[366271036,1750169457903,-460.0,0.00024191,6]
[366271038,1750169457914,-182.74033392,0.00024191,6]
[366271040,1750169457924,-1399.5,0.00024191,6]
[366271042,1750169457934,-460.0,0.00024191,6]
[366271044,1750169457946,-460.0,0.00024191,6]
[366271046,1750169457956,-460.0,0.00024191,6]
[366271048,1750169457967,-168.03828914,0.00024191,6]
[366271051,1750169457977,-460.0,0.00024191,6]
[366271053,1750169457988,-460.0,0.00024191,6]
[366271055,1750169457998,-460.0,0.00024191,6]
[366271057,1750169458007,-460.0,0.00024191,6]
[366271058,1750169458018,-460.0,0.00024191,6]
[366271061,1750169458029,-394.6137757,0.00024191,6]
[366271063,1750169458039,-290.0,0.00024191,6]
[366271065,1750169458049,-460.0,0.00024191,6]
[366271067,1750169458059,-460.0,0.00024191,6]
[366271069,1750169458072,-460.0,0.00024191,6]
[366271071,1750169458082,-460.0,0.00024191,6]
[366271073,1750169458092,-460.0,0.00024191,6]
[366271075,1750169458102,-460.0,0.00024191,6]
[366271077,1750169458112,-460.0,0.00024191,6]
[366271079,1750169458123,-460.0,0.00024191,6]
[366271081,1750169458133,-460.0,0.00024191,6]
[366271083,1750169458143,-655.93,0.00024191,6]
[366271085,1750169458153,-5709.99,0.00024191,6]
[366271087,1750169458163,-460.0,0.00024191,6]
[366271089,1750169458172,-478.77,0.00024191,6]
[366271091,1750169458182,-460.0,0.00024191,6]
[366271093,1750169458192,-3674.88,0.00024191,6]
[366271095,1750169458207,-460.0,0.00024191,6]
[366271097,1750169458222,-460.0,0.00024191,6]
[366271099,1750169458232,-1420.2,0.00024191,6]
[366271101,1750169458242,-460.0,0.00024191,6]
[366271103,1750169458252,-460.0,0.00024191,6]
[366271106,1750169458264,-460.0,0.00024191,6]
[366271108,1750169458274,-379.27666489,0.00024191,6]
[366271110,1750169458284,-2016.1,0.00024191,2]
[366271112,1750169458294,-320.0,0.00024191,6]
[366271114,1750169458306,-791.81,0.00024191,6]
[366271116,1750169458316,-575.08175579,0.00024191,6]
[366271118,1750169458327,-460.0,0.00024191,6]
[366271119,1750169458337,-1220.55,0.00024191,6]
[366271120,1750169458347,-1098.59,0.00024191,6]
[366271121,1750169458358,-460.0,0.00024191,6]
[366271122,1750169458367,-1596.24,0.00024191,6]
[366271123,1750169458378,-460.0,0.00024191,6]
[366271124,1750169458388,-364.19778981,0.00024191,6]
[366271125,1750169458398,-1045.45,0.00024191,6]
[366271126,1750169458408,-460.0,0.00024191,6]
[366271127,1750169458419,-874.47,0.00024191,6]
[366271128,1750169458430,-460.0,0.00024191,6]
[366271129,1750169458439,-460.0,0.00024191,6]
[366271130,1750169458449,-2259.26,0.00024191,6]
[366271132,1750169458459,-357.3406,0.00024191,6]
[366271134,1750169458469,-460.0,0.00024191,6]
[366271136,1750169458479,-468.81,0.00024191,6]
[366271138,1750169458489,-460.0,0.00024191,6]
[366271141,1750169458499,-474.83,0.00024191,6]
[366271143,1750169458510,-974.49,0.00024191,6]
[366271145,1750169458520,-460.0,0.00024191,6]
[366271147,1750169458530,-1341.92,0.00024191,6]
[366271149,1750169458540,-4084.92,0.00024191,6]
[366271151,1750169458550,-841.53,0.00024191,6]
[366271153,1750169458560,-460.0,0.00024191,6]
[366271155,1750169458570,-173.2182719,0.00024191,6]
[366271157,1750169458580,-460.0,0.00024191,6]
[366271159,1750169458591,-1619.79,0.00024191,6]
[366271161,1750169458601,-2543.08,0.00024191,6]
[366271163,1750169458611,-460.0,0.00024191,6]
[366271165,1750169458622,-5432.17,0.00024191,6]
[366271167,1750169458632,-400.0,0.00024191,6]
[366271169,1750169458642,-596.5441236,0.00024191,6]
[366271171,1750169458652,-460.0,0.00024191,6]
[366271173,1750169458662,-460.0,0.00024191,6]
[366271175,1750169458672,-381.14335025,0.00024191,6]
[366271177,1750169458682,-943.63,0.00024191,6]
[366271179,1750169458693,-460.0,0.00024191,6]
[366271181,1750169458703,-460.0,0.00024191,6]
[366271183,1750169458719,-460.0,0.00024191,6]
[366271185,1750169458742,-6773.17,0.00024191,6]
[366271187,1750169458766,-2218.05,0.00024191,6]
[366271188,1750169458787,-460.0,0.00024191,6]
[366271190,1750169458811,-1352.3,0.00024191,6]
[366271192,1750169458834,-460.0,0.00024191,6]
[366271194,1750169458856,-1254.61,0.00024191,6]
[366271196,1750169458878,-604.96,0.00024191,6]
[366271198,1750169458899,-460.0,0.00024191,6]
[366271200,1750169458921,-460.0,0.00024191,6]
[366271202,1750169458947,-1208.43,0.00024191,6]
[366271204,1750169458970,-296.85459833,0.00024191,6]
[366271206,1750169458994,-7855.89,0.00024191,6]
[366271208,1750169459016,-8639.97,0.00024191,6]
[366271210,1750169459026,-460.0,0.00024191,6]
[366271212,1750169459036,-460.0,0.00024191,6]
[366271214,1750169459046,-460.0,0.00024191,6]
[366271216,1750169459056,-460.0,0.00024191,6]
[366271218,1750169459065,-484.15,0.00024191,6]
[366271220,1750169459075,-417.78592463,0.00024191,6]
[366271222,1750169459085,-460.0,0.00024191,6]
[366271223,1750169459094,-460.0,0.00024191,6]
[366271225,1750169459104,-460.0,0.00024191,6]
[366271227,1750169459114,-460.0,0.00024191,6]
[366271229,1750169459124,-564.72,0.00024191,6]
[366271231,1750169459134,-460.0,0.00024191,6]
[366271233,1750169459144,-1725.23,0.00024191,6]
[366271235,1750169459154,-460.0,0.00024191,6]
[366271237,1750169459164,-460.0,0.00024191,6]
[366271239,1750169459174,-689.18,0.00024191,6]
[366271241,1750169459183,-2640.18,0.00024191,6]
[366271243,1750169459193,-460.0,0.00024191,6]
[366271255,1750169459316,-460.0,0.00024191,6]
[366271257,1750169459336,-460.0,0.00024191,6]
[366271259,1750169459347,-723.32,0.00024191,6]
[366271261,1750169459357,-2045.47,0.00024191,6]
[366271262,1750169459367,-460.0,0.00024191,6]
[366271264,1750169459377,-460.0,0.00024191,6]
[366271266,1750169459387,-460.0,0.00024191,6]
[366271268,1750169459398,-1685.22,0.00024191,6]
[366271270,1750169459407,-857.37,0.00024191,6]
[366271272,1750169459418,-460.0,0.00024191,6]
[366271274,1750169459427,-400.0,0.00024191,6]
[366271276,1750169459437,-1668.07,0.00024191,6]
[366271278,1750169459446,-3319.29,0.00024191,6]
[366271279,1750169459455,-2273.07,0.00024191,6]
[366271281,1750169459465,-1100.15,0.00024191,6]
[366271283,1750169459475,-394.58505227,0.00024191,6]
[366271285,1750169459484,-460.0,0.00024191,6]
[366271287,1750169459495,-460.0,0.00024191,6]
[366271289,1750169459504,-460.0,0.00024191,6]
[366271291,1750169459515,-1285.95,0.00024191,6]
[366271292,1750169459524,-460.0,0.00024191,6]
[366271294,1750169459533,-460.0,0.00024191,6]
[366271296,1750169459543,-978.4,0.00024191,6]
[366271298,1750169459553,-6491.67,0.00024191,6]
[366271300,1750169459563,-627.8,0.00024191,6]
[366271302,1750169459573,-460.0,0.00024191,6]